bitfinex/quotes_BTCUSD_20240818
["timestamp","ask_amount","ask_price","bid_price","bid_amount"]
[1723957685477,0.0002,59739.0,59738.0,0.110698]
[1723957685863,0.0002,59739.0,59738.0,0.096698]
[1723957686056,0.0002,59739.0,59738.0,0.013]
[1723957686257,0.0002,59739.0,59738.0,0.025]
[1723957687217,0.0002,59739.0,59738.0,0.276095]
[1723957687677,0.0002,59739.0,59738.0,0.76094654]
[1723957687880,0.083674,59756.0,59750.0,0.08368]
[1723957688081,0.083674,59756.0,59751.0,0.08368]
[1723957688282,0.17578,59759.0,59752.0,0.083679]
[1723957688283,0.00844,59759.0,59752.0,0.083679]
[1723957688674,0.00844,59759.0,59752.0,0.08938998]
[1723957689088,0.00240408,59753.0,59752.0,0.08938998]
[1723957689492,0.00240408,59753.0,59752.0,0.25674798]
[1723957689886,0.00240408,59753.0,59752.0,0.92906559]
[1723957690088,0.00240408,59753.0,59752.0,0.92571852]
[1723957690450,0.00844,59759.0,59758.0,0.251011]
[1723957690807,0.00844,59759.0,59758.0,0.18934719]
[1723957690995,0.00844,59759.0,59758.0,0.35668819]
[1723957692013,0.00844,59759.0,59758.0,0.36468819]
[1723957692211,0.00844,59759.0,59758.0,0.20334719]
[1723957692469,0.00844,59759.0,59758.0,0.11967719]
[1723957692635,0.00844,59759.0,59758.0,0.01967719]
[1723957692636,0.092109,59759.0,59758.0,0.01967719]
[1723957692814,0.00844,59759.0,59758.0,0.01967719]
[1723957693221,0.00844,59759.0,59758.0,0.014]
[1723957693222,0.259447,59759.0,59758.0,0.014]
[1723957693629,0.341347,59759.0,59758.0,0.014]
[1723957694233,0.403747,59759.0,59758.0,0.014]
[1723957694414,0.403747,59759.0,59758.0,0.006]
[1723957694991,0.083675,59756.0,59749.0,0.083682]
[1723957695203,0.083677,59754.0,59748.0,0.083684]
[1723957695333,0.083677,59754.0,59750.0,0.00568118]
[1723957695539,0.083678,59753.0,59749.0,0.00557172]
[1723957695881,0.083679,59752.0,59750.0,0.00557122]
[1723957696289,0.083679,59752.0,59746.0,0.083687]
[1723957696493,0.083679,59752.0,59745.0,0.1]
[1723957696494,0.251038,59752.0,59745.0,0.1]
[1723957696692,0.251038,59752.0,59740.0,0.334782]
[1723957696693,0.167356,59753.0,59741.0,0.12079423]
[1723957696919,0.167356,59753.0,59740.0,0.167391]
[1723957696920,0.0819,59751.0,59740.0,0.167391]
[1723957697106,0.083685,59748.0,59743.0,0.083691]
[1723957697321,0.0819,59751.0,59744.0,0.08369]
[1723957697322,0.083682,59750.0,59744.0,0.08369]
[1723957697769,0.165581,59751.0,59745.0,0.083688]
[1723957698098,0.165581,59751.0,59749.0,0.003]
[1723957698303,0.0819,59751.0,59749.0,0.003]
[1723957698706,0.0819,59751.0,59746.0,0.083686]
[1723957699228,0.0819,59751.0,59747.0,0.00556252]
[1723957699549,0.17155454,59758.0,59745.0,0.012]
[1723957699550,0.00844,59759.0,59751.0,0.167359]
[1723957699783,0.00844,59759.0,59751.0,0.33891354]
[1723957699988,0.00844,59759.0,59752.0,0.167358]
[1723957700104,0.092109,59759.0,59753.0,0.10446663]
[1723957700305,0.092109,59759.0,59754.0,0.10446468]
[1723957700500,0.00844,59759.0,59754.0,0.00600217]
[1723957700783,0.083672,59757.0,59754.0,0.00600217]
[1723957700978,0.083672,59757.0,59752.0,0.083678]
[1723957701181,0.175779,59759.0,59755.0,0.00600168]
[1723957701401,0.175779,59759.0,59757.0,0.51177509]
[1723957701600,0.00844,59759.0,59758.0,0.02078801]
[1723957701783,0.00844,59759.0,59758.0,0.02678787]
[1723957702550,0.259447,59759.0,59758.0,0.02678787]
[1723957702748,0.259447,59759.0,59758.0,0.02678775]
[1723957703020,1e-08,59760.0,59758.0,0.02078757]
[1723957703178,0.25100401,59760.0,59759.0,0.02078757]
[1723957703383,0.31610401,59760.0,59759.0,0.02078757]
[1723957703540,0.65499455,59760.0,59759.0,0.02078757]
[1723957703744,0.167347,59756.0,59748.0,0.51177509]
[1723957703946,0.083676,59754.0,59749.0,0.02079257]
[1723957704142,1e-08,59760.0,59751.0,0.0809]
[1723957704366,1e-08,59760.0,59756.0,0.083672]
[1723957704593,1e-08,59760.0,59757.0,0.02079257]
[1723957704922,1e-08,59760.0,59758.0,0.02079257]
[1723957705126,1e-08,59760.0,59759.0,0.02079257]
[1723957705331,0.16733601,59760.0,59759.0,0.00599968]
[1723957705452,0.25100401,59760.0,59759.0,0.02678731]
[1723957705657,0.25100401,59760.0,59759.0,0.02078763]
[1723957705873,0.083673,59757.0,59751.0,0.08368]
[1723957706080,0.083673,59756.0,59752.0,0.02679458]
[1723957706279,0.0819,59759.0,59752.0,0.02679458]
[1723957706280,0.083671,59758.0,59753.0,0.02169781]
[1723957706480,0.083671,59758.0,59754.0,0.02679358]
[1723957706690,0.083671,59758.0,59755.0,0.02079141]
[1723957706890,0.083671,59758.0,59756.0,0.02079141]
[1723957707093,0.083671,59758.0,59757.0,0.02079141]
[1723957707302,0.251012,59758.0,59757.0,0.02079141]
[1723957708080,0.418353,59758.0,59757.0,0.02079141]
[1723957708288,0.082724,59759.0,59757.0,0.02079141]
[1723957708289,0.000824,59759.0,59757.0,0.02079141]
[1723957708410,0.000824,59759.0,59758.0,0.02679159]
[1723957709407,0.000824,59759.0,59758.0,0.02678944]
[1723957710189,0.000824,59759.0,59758.0,0.02878944]
[1723957710961,0.000824,59759.0,59758.0,0.11245944]
[1723957711167,0.000824,59759.0,59758.0,0.7623086]
[1723957711774,0.000824,59759.0,59758.0,0.7633086]
[1723957712219,0.000824,59759.0,59758.0,0.7623086]
[1723957712677,0.000824,59759.0,59758.0,1.08360283]
[1723957713157,0.00824,59772.0,59766.0,0.083658]
[1723957713158,0.091891,59772.0,59766.0,0.083658]
[1723957713450,0.091891,59772.0,59767.0,0.05558979]
[1723957713651,0.00824,59772.0,59768.0,0.05558979]
[1723957713880,0.091891,59772.0,59767.0,0.00643455]
[1723957713992,0.091891,59772.0,59769.0,0.04124677]
[1723957714197,0.091891,59772.0,59770.0,0.02077761]
[1723957714416,0.091891,59772.0,59771.0,0.02077761]
[1723957714893,0.259193,59772.0,59771.0,0.02077761]
[1723957715244,0.426495,59772.0,59771.0,0.02077761]
[1723957715446,0.59804954,59772.0,59771.0,0.02077761]
[1723957715624,0.83165154,59772.0,59771.0,0.02077761]
[1723957715826,0.083664,59763.0,59760.0,0.51177509]
[1723957716035,0.16732,59766.0,59761.0,0.05560679]
[1723957716237,0.083663,59763.0,59762.0,0.05560679]
[1723957716460,0.083663,59763.0,59762.0,0.06204384]
[1723957717835,0.083663,59763.0,59762.0,0.06904384]
[1723957718059,0.08,59767.0,59762.0,0.0342206]
[1723957718394,0.083662,59764.0,59763.0,0.02078355]
[1723957718762,0.250986,59764.0,59763.0,0.0272201]
[1723957719135,0.17155454,59771.0,59763.0,0.02078355]
[1723957719342,0.17155454,59771.0,59764.0,0.02078355]
[1723957719343,0.08366,59766.0,59764.0,0.02078355]
[1723957719581,0.08366,59766.0,59765.0,0.02078355]
[1723957720116,0.08366,59766.0,59765.0,0.02719413]
[1723957720996,0.08366,59766.0,59765.0,0.02819413]
[1723957721208,0.08366,59766.0,59765.0,0.02719413]
[1723957721410,0.250979,59766.0,59765.0,0.02719413]
[1723957721612,0.250979,59766.0,59765.0,0.02719686]
[1723957722115,0.330979,59766.0,59765.0,0.02719686]
[1723957722358,0.330979,59766.0,59765.0,0.02078628]
[1723957723089,0.330979,59766.0,59759.0,0.024]
[1723957723090,0.083666,59762.0,59759.0,0.024]
[1723957723292,0.149964,59763.0,59760.0,0.02716276]
[1723957723515,0.083665,59762.0,59761.0,0.02078938]
[1723957723689,0.083665,59762.0,59761.0,0.02716226]
[1723957724096,0.250995,59762.0,59761.0,0.02716226]
[1723957724292,0.418325,59762.0,59761.0,0.02716226]
[1723957724525,0.418325,59762.0,59759.0,0.024]
[1723957724526,0.251004,59760.0,59759.0,0.024]
[1723957724730,0.251004,59760.0,59759.0,0.04479141]
[1723957725127,0.33471,59753.0,59737.0,0.00040303]
[1723957725323,0.331088,59740.0,59739.0,0.51177509]
[1723957725456,0.87413454,59740.0,59739.0,0.51816773]
[1723957725661,0.67003454,59740.0,59739.0,0.00639264]
[1723957726000,0.08,59740.0,59737.0,0.00040303]
[1723957726183,0.083698,59738.0,59737.0,0.00040303]
[1723957726394,0.418492,59738.0,59737.0,0.00040303]
[1723957726582,0.251095,59738.0,59737.0,0.00040303]
[1723957727458,0.083698,59738.0,59737.0,0.00040303]
[1723957727577,0.251095,59738.0,59737.0,0.00040303]
[1723957727780,0.419492,59738.0,59737.0,0.00140303]
[1723957727976,0.419492,59738.0,59737.0,0.00240303]
[1723957728180,0.418492,59738.0,59737.0,0.00040303]
[1723957728543,0.251095,59738.0,59737.0,0.00040303]
[1723957728730,0.252095,59738.0,59737.0,0.00240303]
[1723957729008,0.252095,59738.0,59737.0,0.00140303]
[1723957729212,0.252095,59738.0,59737.0,0.00240303]
[1723957729725,0.252095,59738.0,59737.0,0.00140303]
[1723957729926,0.251095,59738.0,59737.0,0.00140303]
[1723957730133,0.251095,59738.0,59737.0,0.00240303]
[1723957730333,0.083703,59735.0,59729.0,0.05930303]
[1723957730537,0.083703,59735.0,59730.0,0.00639714]
[1723957731802,0.083703,59735.0,59730.0,0.00739714]
[1723957732178,0.083704,59734.0,59730.0,0.00839714]
[1723957732903,0.083704,59734.0,59730.0,0.00739714]
[1723957733324,0.083704,59734.0,59730.0,0.00839714]
[1723957733521,0.083704,59734.0,59730.0,0.00677164]
[1723957733827,0.085704,59734.0,59730.0,0.00577164]
[1723957734111,0.087704,59734.0,59730.0,0.00677164]
[1723957734311,0.083707,59733.0,59730.0,0.00677164]
[1723957735083,0.083707,59733.0,59730.0,0.00702164]
[1723957735285,0.085707,59733.0,59730.0,0.00702164]
[1723957736242,0.085707,59733.0,59730.0,0.00602164]
[1723957736446,0.083707,59732.0,59730.0,0.00702164]
[1723957736645,0.083708,59731.0,59730.0,0.00702164]
[1723957736996,0.083708,59731.0,59730.0,0.00602164]
[1723957737166,0.251125,59731.0,59730.0,0.00602164]
[1723957737532,0.251125,59731.0,59730.0,0.00025]
[1723957738159,0.253125,59731.0,59730.0,0.00025]
[1723957738414,0.252125,59731.0,59730.0,0.00025]
[1723957739059,0.419542,59731.0,59730.0,0.00025]
[1723957739543,0.481842,59731.0,59730.0,0.00025]
[1723957739729,0.89971354,59731.0,59730.0,0.00025]
[1723957739856,1.19213054,59731.0,59730.0,0.00025]
[1723957740059,1.33375359,59731.0,59730.0,0.00025]
[1723957740491,0.083739,59709.0,59708.0,0.51177509]
[1723957740712,0.251217,59709.0,59708.0,0.51767221]
[1723957740960,0.083739,59709.0,59708.0,0.00589712]
[1723957741210,0.251217,59709.0,59708.0,0.00589712]
[1723957741391,0.1402,59710.0,59703.0,0.0009064]
[1723957741603,0.083744,59706.0,59703.0,0.0009064]
[1723957741805,0.167487,59706.0,59703.0,0.0009064]
[1723957742013,0.167485,59707.0,59703.0,0.0009064]
[1723957742014,0.083746,59704.0,59703.0,0.0009064]
[1723957742535,0.251238,59704.0,59703.0,0.0009064]
[1723957743708,0.255238,59704.0,59703.0,0.0009064]
[1723957743911,1.10607654,59704.0,59703.0,0.0009064]
[1723957744189,1.10907654,59704.0,59703.0,0.0009064]
[1723957744393,1.14107654,59704.0,59703.0,0.0019064]
[1723957744541,1.25518419,59704.0,59703.0,0.0019064]
[1723957745485,1.13707654,59704.0,59703.0,0.0019064]
[1723957745691,1.13207654,59704.0,59703.0,0.0009064]
[1723957745891,1.12807654,59704.0,59703.0,0.0009064]
[1723957746117,1.10207654,59704.0,59703.0,0.0009064]
[1723957746300,1.22038419,59704.0,59703.0,0.0019064]
[1723957746508,1.21338419,59704.0,59703.0,0.0009064]
[1723957746927,1.23538419,59704.0,59703.0,0.0029064]
[1723957747179,1.23538419,59704.0,59703.0,0.0019064]
[1723957747370,1.21338419,59704.0,59703.0,0.0009064]
[1723957747557,1.22938419,59704.0,59703.0,0.0019064]
[1723957747768,1.24338419,59704.0,59703.0,0.0019064]
[1723957748219,1.13007654,59704.0,59703.0,0.0019064]
[1723957748429,1.13107654,59704.0,59703.0,0.0019064]
[1723957749040,1.13307654,59704.0,59703.0,0.0019064]
[1723957749751,1.13507654,59704.0,59703.0,0.0019064]
[1723957750074,1.15807654,59704.0,59703.0,0.0019064]
[1723957750277,1.27388419,59704.0,59703.0,0.0019064]
[1723957752177,1.44137619,59704.0,59703.0,0.0019064]
[1723957752789,1.32156854,59704.0,59703.0,0.0019064]
[1723957753543,1.15307654,59704.0,59703.0,0.0019064]
[1723957753739,1.13007654,59704.0,59703.0,0.0019064]
[1723957754309,1.11607654,59704.0,59703.0,0.0019064]
[1723957754654,1.11607654,59704.0,59703.0,0.0029064]
[1723957754655,1.13007654,59704.0,59703.0,0.0029064]
[1723957755273,1.13007654,59704.0,59703.0,0.0019064]
[1723957755274,1.11607654,59704.0,59703.0,0.0019064]
[1723957755475,1.12307654,59704.0,59703.0,0.0029064]
[1723957756074,1.23548419,59704.0,59703.0,0.0029064]
[1723957756278,1.12307654,59704.0,59703.0,0.0029064]
[1723957756623,1.10907654,59704.0,59703.0,0.0019064]
[1723957756832,1.12307654,59704.0,59703.0,0.0029064]
[1723957757440,1.12307654,59704.0,59703.0,0.0847064]
[1723957757441,0.090746,59704.0,59703.0,0.0847064]
[1723957757645,0.090746,59704.0,59703.0,0.1507064]
[1723957757868,0.272238,59704.0,59703.0,0.15684263]
[1723957758424,0.258238,59704.0,59703.0,0.15584263]
[1723957758631,0.272238,59704.0,59703.0,0.15684263]
[1723957758831,0.265238,59704.0,59703.0,0.15584263]
[1723957759192,0.103746,59704.0,59703.0,0.15684263]
[1723957759400,0.097746,59704.0,59703.0,0.15584263]
[1723957759823,0.089746,59704.0,59703.0,0.15584263]
[1723957760167,0.097746,59704.0,59703.0,0.15684263]
[1723957761178,0.089746,59704.0,59703.0,0.15584263]
[1723957761474,0.083746,59704.0,59703.0,0.15484263]
[1723957761676,0.083746,59704.0,59703.0,0.15584263]
[1723957761677,0.089746,59704.0,59703.0,0.15584263]
[1723957761886,0.257238,59704.0,59703.0,0.15584263]
[1723957762021,0.264238,59704.0,59703.0,0.09184263]
[1723957762982,0.474902,59704.0,59703.0,0.00904263]
[1723957763595,0.43173,59704.0,59703.0,0.00904263]
[1723957763770,0.42473,59704.0,59703.0,0.00804263]
[1723957764097,0.094746,59704.0,59703.0,0.00804263]
[1723957764472,0.088746,59704.0,59703.0,0.00704263]
[1723957764854,0.088746,59704.0,59703.0,0.00804263]
[1723957764855,0.094746,59704.0,59703.0,0.00804263]
[1723957767415,0.90977654,59704.0,59703.0,0.00804263]
[1723957767755,0.91077654,59704.0,59703.0,0.00804263]
[1723957767893,0.91077654,59704.0,59703.0,0.0019064]
[1723957768095,0.93577654,59704.0,59703.0,0.0019064]
[1723957768419,0.92777654,59704.0,59703.0,0.0019064]
[1723957768620,0.90477654,59704.0,59703.0,0.0019064]
[1723957769325,0.90477654,59704.0,59703.0,0.0009064]
[1723957769326,0.75777654,59704.0,59703.0,0.0009064]
[1723957769690,0.77777654,59704.0,59703.0,0.0029064]
[1723957770190,0.76377654,59704.0,59703.0,0.0019064]
[1723957770396,0.77777654,59704.0,59703.0,0.0029064]
[1723957770950,0.75777654,59704.0,59703.0,0.0009064]
[1723957771288,0.75777654,59704.0,59703.0,0.0029064]
[1723957771289,0.78477654,59704.0,59703.0,0.0029064]
[1723957771704,0.77077654,59704.0,59703.0,0.0019064]
[1723957771909,0.77077654,59704.0,59703.0,0.0029064]
[1723957771910,0.78477654,59704.0,59703.0,0.0029064]
[1723957773337,0.03955613,59772.0,59703.0,0.0029064]
[1723957773338,0.000825,59726.0,59705.0,0.083]
[1723957773577,0.000825,59726.0,59715.0,0.167459]
[1723957773817,0.000825,59726.0,59718.0,0.0609]
[1723957774089,0.000825,59726.0,59724.0,0.083]
[1723957774256,0.000825,59726.0,59725.0,0.13944976]
[1723957774409,0.000825,59726.0,59725.0,0.14505253]
[1723957774785,0.006825,59726.0,59725.0,0.14505253]
[1723957775117,0.007825,59726.0,59725.0,0.31248653]
[1723957775314,0.001825,59726.0,59725.0,0.27758732]
[1723957775895,0.002825,59726.0,59725.0,0.28458732]
[1723957776633,0.000825,59726.0,59725.0,0.50592132]
[1723957776964,0.000825,59726.0,59725.0,0.51492132]
[1723957777338,0.000825,59726.0,59725.0,0.50592132]
[1723957777630,0.000825,59726.0,59725.0,0.58892132]
[1723957777774,0.000825,59726.0,59725.0,0.59631855]
[1723957777990,0.000825,59726.0,59725.0,0.575485]
[1723957778197,0.000825,59726.0,59725.0,0.59628824]
[1723957778976,0.000825,59726.0,59725.0,0.59128824]
[1723957779175,0.000825,59726.0,59725.0,0.59928824]
[1723957779523,0.000825,59726.0,59725.0,0.578485]
[1723957779754,0.000825,59726.0,59725.0,0.570485]
[1723957779963,0.000825,59726.0,59725.0,0.562485]
[1723957780113,0.000825,59726.0,59725.0,0.574485]
[1723957780499,0.000825,59726.0,59725.0,0.562485]
[1723957780893,0.000825,59726.0,59725.0,0.570485]
[1723957781742,0.000825,59726.0,59725.0,0.749919]
[1723957781938,0.000825,59726.0,59725.0,0.737919]
[1723957782374,0.000825,59726.0,59725.0,0.739919]
[1723957782578,0.000825,59726.0,59725.0,0.741919]
[1723957782926,0.000825,59726.0,59725.0,0.752919]
[1723957783201,0.000825,59726.0,59725.0,0.740919]
[1723957783405,0.000825,59726.0,59725.0,0.92347354]
[1723957783822,0.000825,59726.0,59725.0,0.91247354]
[1723957784329,0.000825,59726.0,59725.0,0.92447354]
[1723957785248,0.000825,59726.0,59725.0,0.91347354]
[1723957785674,0.000825,59726.0,59725.0,0.92547354]
[1723957785880,0.000825,59726.0,59725.0,0.91347354]
[1723957786789,0.000825,59726.0,59725.0,0.91447354]
[1723957787177,0.000825,59726.0,59725.0,0.92847354]
[1723957787610,0.000825,59726.0,59725.0,0.91447354]
[1723957787956,0.000825,59726.0,59725.0,0.92847354]
[1723957788366,0.000825,59726.0,59725.0,0.91547354]
[1723957788754,0.000825,59726.0,59725.0,0.92847354]
[1723957789153,0.000825,59726.0,59725.0,0.91447354]
[1723957789350,0.000825,59726.0,59725.0,0.92847354]
[1723957790007,0.000825,59726.0,59725.0,0.91447354]
[1723957790161,0.000825,59726.0,59725.0,0.92847354]
[1723957790769,0.000825,59726.0,59725.0,0.91447354]
[1723957790970,0.000825,59726.0,59725.0,0.92847354]
[1723957791180,0.000825,59726.0,59725.0,0.9492632]
[1723957791373,0.000825,59726.0,59725.0,0.9362632]
[1723957791817,0.000825,59726.0,59725.0,0.9492632]
[1723957792277,0.000825,59726.0,59725.0,0.9352632]
[1723957792278,1e-08,59726.0,59725.0,0.9352632]
[1723957793124,1e-08,59726.0,59725.0,2.4610972]
[1723957793252,1e-08,59726.0,59725.0,2.5130972]
[1723957793645,0.000825,59731.0,59730.0,0.72247]
[1723957793843,0.000825,59731.0,59730.0,2.2842142]
[1723957794272,0.000825,59731.0,59730.0,2.26342454]
[1723957794472,0.000825,59731.0,59730.0,2.28420599]
[1723957794779,0.000825,59731.0,59730.0,2.26342454]
[1723957794985,0.000825,59731.0,59730.0,2.28420622]
[1723957795390,0.000825,59731.0,59730.0,2.48962622]
[1723957795617,0.000825,59731.0,59730.0,2.50562622]
[1723957796325,0.000825,59731.0,59730.0,2.60243186]
[1723957796532,0.000825,59731.0,59730.0,2.61643186]
[1723957796739,0.0804,59756.0,59755.0,0.083675]
[1723957796944,0.000824,59760.0,59756.0,0.083673]
[1723957797144,0.084492,59760.0,59753.0,0.083677]
[1723957797343,0.083671,59758.0,59751.0,0.083679]
[1723957797494,0.083671,59758.0,59752.0,0.083678]
[1723957798030,0.000824,59760.0,59745.0,1.436776]
[1723957798031,0.164073,59757.0,59750.0,0.083682]
[1723957798180,0.164073,59757.0,59751.0,0.08368]
[1723957798586,0.164073,59757.0,59747.0,0.167372]
[1723957798587,0.0804,59757.0,59752.0,0.083679]
[1723957798971,0.0804,59757.0,59754.0,0.083676]
[1723957799786,0.0804,59757.0,59752.0,0.083678]
[1723957800159,0.0804,59757.0,59753.0,0.083677]
[1723957800919,0.164072,59757.0,59749.0,0.167364]
[1723957801128,0.164072,59757.0,59751.0,0.083679]
[1723957801323,0.164072,59757.0,59752.0,0.083679]
[1723957801884,0.0804,59757.0,59752.0,0.083679]
[1723957802422,0.0804,59757.0,59744.0,1.2694]
[1723957802423,0.083674,59756.0,59750.0,0.083681]
[1723957802646,0.083674,59756.0,59751.0,0.02077152]
[1723957802846,0.083674,59756.0,59752.0,0.02077152]
[1723957803137,0.083674,59756.0,59744.0,1.44095454]
[1723957803138,0.17155454,59756.0,59744.0,1.2694]
[1723957803351,0.0804,59754.0,59745.0,0.02077856]
[1723957803525,0.083682,59750.0,59746.0,0.02077856]
[1723957803699,0.083684,59749.0,59747.0,0.02078014]
[1723957804051,0.0804,59754.0,59744.0,1.2694]
[1723957804052,0.25195454,59754.0,59744.0,1.2694]
[1723957804180,0.167366,59750.0,59745.0,0.02078082]
[1723957804406,0.167366,59750.0,59744.0,1.2694]
[1723957804407,0.0804,59745.0,59744.0,1.2694]
[1723957804605,0.164089,59745.0,59744.0,1.29018262]
[1723957805163,0.164089,59745.0,59744.0,1.2694]
[1723957805325,0.164089,59745.0,59744.0,1.29018237]
[1723957805533,0.0804,59745.0,59744.0,1.29018237]
[1723957805934,0.0804,59745.0,59744.0,1.29818237]
[1723957806742,0.164089,59745.0,59744.0,1.29818237]
[1723957808900,0.228089,59745.0,59744.0,1.29818237]
[1723957809016,0.395467,59745.0,59744.0,1.29818237]
[1723957809213,0.562845,59745.0,59744.0,0.008]
[1723957810026,0.73439954,59745.0,59744.0,0.008]
[1723957811195,0.73439954,59745.0,59744.0,0.004]
[1723957811660,0.65071054,59745.0,59744.0,0.001]
[1723957811886,0.65171054,59745.0,59744.0,0.001]
[1723957812124,0.73539954,59745.0,59744.0,0.001]
[1723957812354,0.083696,59740.0,59734.0,0.083704]
[1723957812590,0.083696,59740.0,59735.0,0.02078691]
[1723957812843,0.083696,59740.0,59736.0,0.02078691]
[1723957813081,0.083696,59740.0,59737.0,0.02078691]
[1723957813564,0.083697,59739.0,59738.0,0.02078691]
[1723957814977,0.167389,59742.0,59738.0,0.02078691]
[1723957815205,0.167389,59742.0,59734.0,0.083704]
[1723957815206,0.083695,59741.0,59739.0,0.02078691]
[1723957815436,0.167389,59742.0,59738.0,0.001]
[1723957815437,0.083697,59739.0,59738.0,0.001]
[1723957815634,0.083697,59739.0,59738.0,0.002]
[1723957815984,0.083697,59739.0,59738.0,0.001]
[1723957816589,0.251091,59739.0,59738.0,0.001]
[1723957816789,0.418485,59739.0,59738.0,0.001]
[1723957816989,0.083703,59735.0,59729.0,0.083711]
[1723957817217,0.083703,59735.0,59730.0,0.02079392]
[1723957817422,0.083703,59735.0,59729.0,0.083711]
[1723957817620,0.083703,59735.0,59730.0,0.02079399]
[1723957817818,0.003,59738.0,59724.0,0.167434]
[1723957817819,0.0798,59733.0,59724.0,0.167434]
[1723957818019,0.0798,59733.0,59728.0,0.083712]
[1723957818319,0.0798,59733.0,59730.0,0.005]
[1723957818933,0.163506,59733.0,59730.0,0.005]
[1723957819313,0.083707,59732.0,59726.0,0.083714]
[1723957819515,0.083707,59732.0,59730.0,0.003]
[1723957819884,0.083707,59732.0,59731.0,0.0009075]
[1723957821080,0.479135,59732.0,59731.0,0.0009075]
[1723957821295,0.479135,59732.0,59731.0,0.0049075]
[1723957821498,0.65068954,59732.0,59731.0,0.0049075]
[1723957821702,0.73048954,59732.0,59731.0,0.0049075]
[1723957822128,0.73048954,59732.0,59731.0,0.0089075]
[1723957822567,0.73048954,59732.0,59731.0,0.0049075]
[1723957822988,0.73048954,59732.0,59731.0,0.0019075]
[1723957822989,0.73148954,59732.0,59731.0,0.0019075]
[1723957823357,0.73148954,59732.0,59731.0,0.0029075]
[1723957823536,0.73148954,59732.0,59731.0,0.0019075]
[1723957823958,0.73148954,59732.0,59731.0,0.0029075]
[1723957824157,0.73148954,59732.0,59731.0,0.0019075]
[1723957824390,0.73048954,59732.0,59731.0,0.0019075]
[1723957824600,0.73048954,59732.0,59731.0,0.0039075]
[1723957824601,0.73148954,59732.0,59731.0,0.0039075]
[1723957826756,0.73148954,59732.0,59731.0,0.0019075]
[1723957826958,0.73148954,59732.0,59731.0,0.0029075]
[1723957827387,0.73048954,59732.0,59731.0,0.0019075]
[1723957827588,0.73048954,59732.0,59731.0,0.0029075]
[1723957827793,0.73148954,59732.0,59731.0,0.0029075]
[1723957833136,0.98889279,59732.0,59731.0,0.0029075]
[1723957833336,0.89890354,59732.0,59731.0,0.0029075]
[1723957834181,0.89790354,59732.0,59731.0,0.0019075]
[1723957834429,0.89790354,59732.0,59731.0,0.0009075]
[1723957834652,0.89890354,59732.0,59731.0,0.0019075]
[1723957834921,0.89890354,59732.0,59731.0,0.0029075]
[1723957836130,0.90997518,59732.0,59731.0,0.0029075]
[1723957836795,0.91197518,59732.0,59731.0,0.0019075]
[1723957837027,0.91197518,59732.0,59731.0,0.0029075]
[1723957837276,1.0013727,59732.0,59731.0,0.0019075]
[1723957837529,1.0253727,59732.0,59731.0,0.0019075]
[1723957837737,1.0243727,59732.0,59731.0,0.0029075]
[1723957837997,0.93497518,59732.0,59731.0,0.0029075]
[1723957838210,0.93697518,59732.0,59731.0,0.0029075]
[1723957838463,1.03697518,59732.0,59731.0,0.0029075]
[1723957839198,1.00897518,59732.0,59731.0,0.0029075]
[1723957839436,0.77088954,59732.0,59731.0,0.0029075]
[1723957839891,0.69108954,59732.0,59731.0,0.0029075]
[1723957840416,0.69108954,59732.0,59731.0,0.0019075]
[1723957840641,0.69008954,59732.0,59731.0,0.0009075]
[1723957840908,0.69108954,59732.0,59731.0,0.0019075]
[1723957841163,0.69108954,59732.0,59731.0,0.0029075]
[1723957841382,0.68608954,59732.0,59731.0,0.0029075]
[1723957845944,0.68691454,59732.0,59731.0,0.0029075]
[1723957850925,0.58691454,59732.0,59731.0,0.0029075]
[1723957851550,0.61480487,59732.0,59731.0,0.0029075]
[1723957855626,0.27583633,59732.0,59731.0,0.0029075]
[1723957856459,0.27583633,59732.0,59731.0,0.0009075]
[1723957856460,0.10742233,59732.0,59731.0,0.0009075]
[1723957856664,0.10742233,59732.0,59731.0,0.0835075]
[1723957856665,0.080532,59732.0,59731.0,0.0835075]
[1723957856838,0.080532,59732.0,59731.0,0.0845075]
[1723957857038,0.080532,59732.0,59731.0,0.1042732]
[1723957857039,0.001825,59732.0,59731.0,0.1042732]
[1723957857251,0.000825,59732.0,59731.0,0.1032732]
[1723957857469,0.001825,59732.0,59731.0,0.1042732]
[1723957857686,0.001825,59732.0,59731.0,0.1032732]
[1723957857890,0.000825,59732.0,59731.0,0.1032732]
[1723957858105,0.084532,59732.0,59731.0,0.1032732]
[1723957858273,0.085532,59732.0,59731.0,0.0825075]
[1723957858472,0.085532,59732.0,59731.0,0.10327202]
[1723957861444,0.085532,59732.0,59731.0,0.10327243]
[1723957863342,0.085532,59732.0,59731.0,0.0825075]
[1723957864374,0.085532,59732.0,59731.0,0.10327106]
[1723957864704,0.001825,59732.0,59731.0,0.10327106]
[1723957865646,0.001825,59732.0,59731.0,0.0825075]
[1723957865965,0.001825,59732.0,59731.0,0.10327115]
[1723957867892,0.001825,59732.0,59731.0,0.24907915]
[1723957868666,0.000825,59732.0,59731.0,0.24907915]
[1723957869204,0.000825,59732.0,59731.0,0.02167115]
[1723957869205,0.084532,59732.0,59731.0,0.02167115]
[1723957869428,0.251946,59732.0,59731.0,0.0009075]
[1723957870450,0.252946,59732.0,59731.0,0.0009075]
[1723957871230,0.42036,59732.0,59731.0,0.0009075]
[1723957872418,0.41936,59732.0,59731.0,0.0009075]
[1723957872795,0.42036,59732.0,59731.0,0.0009075]
[1723957873205,0.41936,59732.0,59731.0,0.0009075]
[1723957873560,0.42036,59732.0,59731.0,0.0009075]
[1723957875815,0.59191454,59732.0,59731.0,0.0009075]
[1723957877309,0.67401454,59732.0,59731.0,0.0009075]
[1723957877714,0.84142854,59732.0,59731.0,0.0009075]
[1723957879226,0.93461733,59732.0,59731.0,0.0009075]
[1723957880097,0.93661733,59732.0,59731.0,0.0009075]
[1723957880304,0.95861733,59732.0,59731.0,0.0009075]
[1723957880536,0.95961733,59732.0,59731.0,0.0019075]
[1723957880924,0.95961733,59732.0,59731.0,0.0029075]
[1723957881329,1.07331737,59732.0,59731.0,0.0029075]
[1723957881757,1.07231737,59732.0,59731.0,0.0019075]
[1723957882233,1.07531737,59732.0,59731.0,0.0029075]
[1723957882996,0.96161733,59732.0,59731.0,0.0029075]
[1723957884385,1.16541733,59732.0,59731.0,0.0029075]